bitfinex/quotes_BTCUSD_20240820
["timestamp","ask_amount","ask_price","bid_price","bid_amount"]
[1724113389979,0.404847,59652.0,59651.0,0.01419322]
[1724113390655,0.639541,59652.0,59651.0,0.01419322]
[1724113391304,0.404847,59652.0,59651.0,0.01419322]
[1724113391706,0.404847,59652.0,59651.0,0.01619322]
[1724113392336,0.404847,59652.0,59651.0,0.0029042]
[1724113392569,0.639541,59652.0,59651.0,0.0029042]
[1724113393624,0.2875,59652.0,59651.0,0.0029042]
[1724113393836,0.2875,59652.0,59651.0,0.01493002]
[1724113394251,0.404847,59652.0,59651.0,0.0029042]
[1724113394852,0.639541,59652.0,59651.0,0.0029042]
[1724113396430,0.404847,59652.0,59651.0,0.0029042]
[1724113396641,0.639541,59652.0,59651.0,0.0029042]
[1724113396844,0.404847,59652.0,59651.0,0.0029042]
[1724113397068,0.2875,59652.0,59651.0,0.0029042]
[1724113397279,0.2875,59652.0,59651.0,0.01493022]
[1724113397483,0.2875,59652.0,59651.0,0.0029042]
[1724113397696,0.2875,59652.0,59651.0,0.016246]
[1724113399876,0.2865,59652.0,59651.0,0.016246]
[1724113400088,0.2875,59652.0,59651.0,0.016246]
[1724113400275,0.2875,59652.0,59651.0,0.0296058]
[1724113400449,0.2855,59652.0,59651.0,0.1469548]
[1724113400730,0.2875,59652.0,59651.0,0.368293]
[1724113400930,0.2875,59652.0,59651.0,1.868293]
[1724113401135,0.2875,59652.0,59651.0,2.03964177]
[1724113401357,0.2875,59652.0,59651.0,0.30494377]
[1724113401725,0.2875,59652.0,59651.0,0.133595]
[1724113402483,0.2875,59652.0,59651.0,0.016246]
[1724113404469,0.2875,59652.0,59651.0,0.133595]
[1724113405853,0.2855,59652.0,59651.0,0.133595]
[1724113406091,0.2875,59652.0,59651.0,0.133595]
[1724113406456,0.2845,59652.0,59651.0,0.437933]
[1724113406664,0.2875,59652.0,59651.0,0.437933]
[1724113408019,0.2855,59652.0,59651.0,0.437933]
[1724113408178,0.001,59652.0,59651.0,0.672631]
[1724113408582,0.003,59652.0,59651.0,0.672631]
[1724113408993,0.001,59652.0,59651.0,0.672631]
[1724113409401,0.001,59652.0,59651.0,0.602991]
[1724113410314,0.003,59652.0,59651.0,0.602991]
[1724113410708,0.003,59652.0,59651.0,0.368293]
[1724113411434,0.003,59652.0,59651.0,0.602991]
[1724113411643,0.003,59652.0,59651.0,0.368293]
[1724113412011,0.003,59652.0,59651.0,0.602991]
[1724113412209,0.003,59652.0,59651.0,0.368293]
[1724113413030,1.003,59652.0,59651.0,0.368293]
[1724113413235,1.001,59652.0,59651.0,0.368293]
[1724113413431,1.003,59652.0,59651.0,0.368293]
[1724113413631,1.003,59652.0,59651.0,0.602991]
[1724113413830,1.003,59652.0,59651.0,0.368293]
[1724113414306,1.003,59652.0,59651.0,0.602991]
[1724113414436,1.003,59652.0,59651.0,0.6961008]
[1724113414638,1.001,59652.0,59651.0,0.4614028]
[1724113415266,1.001,59652.0,59651.0,0.368293]
[1724113415267,1.003,59652.0,59651.0,0.368293]
[1724113417842,1.003,59652.0,59651.0,0.016246]
[1724113418064,1.2778,59652.0,59651.0,0.016246]
[1724113418253,1.2778,59652.0,59651.0,0.0029042]
[1724113420014,1.278622,59652.0,59651.0,0.0029042]
[1724113420431,1.395969,59652.0,59651.0,0.0029042]
[1724113421635,1.865357,59652.0,59651.0,0.0029042]
[1724113421853,2.24391957,59652.0,59651.0,0.0029042]
[1724113422064,2.29414364,59652.0,59651.0,0.0029042]
[1724113422272,2.29416228,59652.0,59651.0,0.0029042]
[1724113422493,2.24391957,59652.0,59651.0,0.0029042]
[1724113422840,2.24391957,59652.0,59651.0,0.0009042]
[1724113423285,2.24591957,59652.0,59651.0,0.0009042]
[1724113423915,2.24791957,59652.0,59651.0,0.0009042]
[1724113424297,1.91982557,59652.0,59651.0,0.0009042]
[1724113424542,1.66213157,59652.0,59651.0,0.0009042]
[1724113426083,1.31009057,59652.0,59651.0,0.0009042]
[1724113426271,1.280622,59652.0,59651.0,0.15115502]
[1724113426476,1.280622,59652.0,59651.0,0.36081274]
[1724113426675,1.280622,59652.0,59651.0,0.12611474]
[1724113426878,1.003822,59652.0,59651.0,0.12611474]
[1724113428124,1.001822,59652.0,59651.0,0.18866771]
[1724113428298,1.001822,59652.0,59651.0,0.42536571]
[1724113428515,1.001822,59652.0,59651.0,0.19066771]
[1724113428720,1.001822,59652.0,59651.0,0.18866771]
[1724113428922,1.001822,59652.0,59651.0,0.13411474]
[1724113429270,1.001822,59652.0,59651.0,0.12611474]
[1724113429490,1.001822,59652.0,59651.0,0.00876574]
[1724113429696,1.003822,59652.0,59651.0,0.13611474]
[1724113430276,1.001822,59652.0,59651.0,0.37081274]
[1724113432296,1.003822,59652.0,59651.0,0.37081274]
[1724113432683,1.003822,59652.0,59651.0,0.01876574]
[1724113432887,1.003822,59652.0,59651.0,0.0109042]
[1724113433115,1.003822,59652.0,59651.0,0.1282532]
[1724113433323,1.003822,59652.0,59651.0,0.13610712]
[1724113433660,1.003822,59652.0,59651.0,0.13210712]
[1724113433997,1.003822,59652.0,59651.0,0.13610712]
[1724113434224,1.157322,59652.0,59651.0,0.13610712]
[1724113434425,1.157322,59652.0,59651.0,0.43135733]
[1724113434840,1.157322,59652.0,59651.0,0.42535733]
[1724113435046,1.157322,59652.0,59651.0,0.43135733]
[1724113435261,1.157322,59652.0,59651.0,0.19665933]
[1724113435911,1.157322,59652.0,59651.0,0.19265933]
[1724113436321,1.157322,59652.0,59651.0,0.19665933]
[1724113436949,1.003822,59652.0,59651.0,0.19265933]
[1724113437306,1.003822,59652.0,59651.0,0.19665933]
[1724113437888,1.001822,59652.0,59651.0,0.43135733]
[1724113438305,1.003822,59652.0,59651.0,0.43135733]
[1724113439212,1.003822,59652.0,59651.0,0.13610712]
[1724113440764,1.289822,59652.0,59651.0,0.01875812]
[1724113440899,1.289822,59652.0,59651.0,0.13610712]
[1724113441083,1.289822,59652.0,59651.0,0.01875812]
[1724113441918,1.289822,59652.0,59651.0,0.01275812]
[1724113442352,1.289822,59652.0,59651.0,0.01775812]
[1724113442567,1.289822,59652.0,59651.0,0.01275812]
[1724113442736,1.289822,59652.0,59651.0,0.00875812]
[1724113442938,1.289822,59652.0,59651.0,0.01175812]
[1724113443343,1.289822,59652.0,59651.0,0.0039042]
[1724113443801,1.287822,59652.0,59651.0,0.36507702]
[1724113443919,1.287822,59652.0,59651.0,0.3529512]
[1724113443920,1.002822,59652.0,59651.0,0.3529512]
[1724113444125,1.001822,59652.0,59651.0,0.60450105]
[1724113444328,1.003822,59652.0,59651.0,0.60450105]
[1724113444536,1.002822,59652.0,59651.0,0.59550105]
[1724113444736,1.000822,59652.0,59651.0,1.03543916]
[1724113445161,1.000822,59652.0,59651.0,1.03143916]
[1724113445335,1.000822,59652.0,59651.0,1.03943916]
[1724113445870,1.000822,59652.0,59651.0,1.04143916]
[1724113446265,1.000822,59652.0,59651.0,1.03943916]
[1724113446853,1.000822,59652.0,59651.0,1.04443916]
[1724113447881,1.000822,59652.0,59651.0,1.19683916]
[1724113448304,1.000822,59652.0,59651.0,1.9033023]
[1724113448504,1.000822,59652.0,59651.0,2.02158444]
[1724113448729,1.000822,59652.0,59651.0,3.49667374]
[1724113449734,1.000822,59652.0,59651.0,3.49167374]
[1724113449959,1.000822,59652.0,59651.0,3.66802251]
[1724113450577,1.000822,59652.0,59651.0,3.80302251]
[1724113450781,1.000822,59652.0,59651.0,3.7323824]
[1724113451130,1.000822,59652.0,59651.0,3.84610518]
[1724113451335,1.000822,59652.0,59651.0,3.7323824]
[1724113451570,1.000822,59652.0,59651.0,3.67473278]
[1724113451767,1.000822,59652.0,59651.0,0.75935912]
[1724113452012,1.152822,59652.0,59651.0,0.72350105]
[1724113452620,1.152822,59652.0,59651.0,0.73750105]
[1724113453255,1.151822,59652.0,59651.0,0.73750105]
[1724113453447,1.000822,59652.0,59651.0,1.58830623]
[1724113453884,1.000822,59652.0,59651.0,3.07430623]
[1724113454081,1.000822,59652.0,59651.0,3.08830623]
[1724113454293,1.000822,59652.0,59651.0,3.07430623]
[1724113454496,1.000822,59652.0,59651.0,3.07630623]
[1724113454905,1.000822,59652.0,59651.0,3.09030623]
[1724113455541,1.000822,59652.0,59651.0,3.32500423]
[1724113455676,1.000822,59652.0,59651.0,3.32300423]
[1724113457313,1.000822,59652.0,59651.0,3.08830623]
[1724113457627,0.00823,59687.0,59678.0,0.821072]
[1724113457833,0.00823,59687.0,59678.0,1.46031277]
[1724113458039,0.00823,59687.0,59686.0,0.82096]
[1724113458209,0.00823,59687.0,59686.0,2.82560877]
[1724113458587,0.00823,59687.0,59686.0,2.87210877]
[1724113458723,0.00823,59687.0,59686.0,3.13956877]
[1724113459125,0.00823,59687.0,59686.0,3.40776877]
[1724113459328,0.0118495,59695.0,59693.0,1.103998]
[1724113459558,0.0118495,59695.0,59693.0,1.67318677]
[1724113459759,0.0118495,59695.0,59693.0,1.87407977]
[1724113460746,0.0118495,59695.0,59693.0,1.88807977]
[1724113461125,0.0118495,59695.0,59693.0,1.97628695]
[1724113461262,0.0118495,59695.0,59693.0,1.99028695]
[1724113461480,0.0118495,59695.0,59693.0,2.00428695]
[1724113461679,0.0118495,59695.0,59693.0,1.76366103]
[1724113461908,0.1566,59718.0,59693.0,1.76366103]
[1724113461909,0.0479,59738.0,59713.0,0.234452]
[1724113462088,0.0479,59738.0,59737.0,0.58484]
[1724113462284,0.0479,59738.0,59737.0,0.9192]
[1724113462485,0.0479,59738.0,59737.0,1.21520021]
[1724113462684,0.0479,59738.0,59737.0,1.48320021]
[1724113462893,0.0479,59738.0,59737.0,1.52120021]
[1724113463092,0.0479,59738.0,59737.0,2.97046]
[1724113463296,0.02874944,59747.0,59746.0,1.088102]
[1724113463546,0.02874944,59747.0,59746.0,1.347302]
[1724113463831,0.02874944,59747.0,59746.0,1.470302]
[1724113464034,0.02874944,59747.0,59746.0,2.970302]
[1724113464239,0.02874944,59747.0,59746.0,2.972302]
[1724113464457,0.02874944,59747.0,59746.0,2.970302]
[1724113464979,0.02874944,59747.0,59746.0,3.23390852]
[1724113465300,0.02874944,59747.0,59746.0,3.23023249]
[1724113465506,0.00040411,59748.0,59746.0,3.23023249]
[1724113465507,0.00040411,59748.0,59747.0,1.090084]
[1724113465731,0.00823,59754.0,59749.0,0.385109]
[1724113465935,0.00823,59754.0,59749.0,0.719422]
[1724113466249,0.1467,59749.0,59746.0,0.02232397]
[1724113466473,0.1467,59749.0,59746.0,0.00832397]
[1724113466673,0.1467,59749.0,59746.0,0.02232397]
[1724113466847,0.1467,59749.0,59747.0,0.0139491]
[1724113467072,0.1467,59749.0,59729.0,0.52729]
[1724113467073,0.1477,59749.0,59729.0,0.2929]
[1724113467278,0.5019994,59750.0,59749.0,0.585782]
[1724113467279,0.5,59750.0,59749.0,0.585782]
[1724113467433,0.5,59750.0,59749.0,0.75713077]
[1724113467635,0.5,59750.0,59749.0,0.52281777]
[1724113468477,0.5,59750.0,59749.0,0.62281777]
[1724113468672,0.7675,59750.0,59749.0,0.72363165]
[1724113468874,0.7675,59750.0,59749.0,0.23881911]
[1724113469861,0.5,59750.0,59749.0,0.64048088]
[1724113470063,0.5,59750.0,59749.0,0.87479388]
[1724113470280,0.5,59750.0,59749.0,0.88879388]
[1724113470481,0.5,59750.0,59749.0,0.87394937]
[1724113470614,0.5,59750.0,59749.0,0.99110537]
[1724113470816,0.5,59750.0,59749.0,0.25281911]
[1724113471033,0.5,59750.0,59749.0,0.48713211]
[1724113471417,0.26790404,59758.0,59749.0,0.48713211]
[1724113471418,0.067046,59792.0,59791.0,0.468296]
[1724113471616,0.00040362,59820.0,59791.0,0.468296]
[1724113471617,0.03,59862.0,59824.0,1.7025]
[1724113471854,0.234972,59878.0,59849.0,0.233922]
[1724113472082,0.018936,59873.0,59858.0,0.584715]
[1724113472286,0.00116,59878.0,59858.0,1.109501]
[1724113472492,0.00116,59878.0,59868.0,0.584617]
[1724113472898,0.0002,59879.0,59878.0,0.384352]
[1724113473139,4.003995,59900.0,59878.0,0.384352]
[1724113473140,4.003995,59900.0,59888.0,0.233769]
[1724113473141,3.94848781,59900.0,59888.0,0.233769]
[1724113473351,3.94848781,59900.0,59869.0,0.51404632]
[1724113473543,0.001,59898.0,59897.0,0.116865]
[1724113473745,3.94848781,59900.0,59872.0,0.2909]
[1724113473746,3.94948781,59900.0,59872.0,0.2909]
[1724113473856,3.94848781,59900.0,59873.0,0.08690228]
[1724113474062,0.001,59891.0,59874.0,0.17134877]
[1724113474261,3.94848781,59900.0,59875.0,0.51404632]
[1724113474262,0.1144,59883.0,59875.0,0.51404632]
[1724113474463,0.1144,59883.0,59870.0,0.233838]
[1724113474672,0.001,59881.0,59871.0,0.0233838]
[1724113474878,0.1134,59883.0,59858.0,0.233885]
[1724113474879,0.001,59876.0,59858.0,0.233885]
[1724113475114,0.001,59866.0,59858.0,0.51404632]
[1724113475287,0.001,59863.0,59859.0,0.51404632]
[1724113475491,0.001,59858.0,59842.0,0.17134877]
[1724113475695,0.001,59861.0,59842.0,0.17134877]
[1724113475919,0.001,59860.0,59842.0,0.17134877]
[1724113476120,0.001,59859.0,59846.0,0.116966]
[1724113476322,0.001,59853.0,59843.0,0.03039417]
[1724113476522,0.001,59853.0,59847.0,0.01252803]
[1724113476729,0.001,59852.0,59833.0,0.17134877]
[1724113476954,0.001,59852.0,59834.0,0.233979]
[1724113477201,0.123,59858.0,59825.0,0.0087]
[1724113477202,0.123,59858.0,59836.0,0.17134877]
[1724113477379,0.1,59867.0,59845.0,0.116967]
[1724113477585,0.23387,59863.0,59842.0,0.116974]
[1724113477779,0.1,59873.0,59843.0,0.17134877]
[1724113477780,0.116955,59852.0,59843.0,0.17134877]
[1724113477982,0.116951,59854.0,59843.0,0.17134877]
[1724113478183,0.002,59871.0,59844.0,0.01713488]
[1724113478184,0.233892,59857.0,59844.0,0.01713488]
[1724113478403,0.00333989,59861.0,59845.0,0.01884836]
[1724113478642,0.001,59882.0,59845.0,0.01884836]
[1724113478643,3.22276027,59900.0,59897.0,0.233731]
[1724113478869,0.0002,59939.0,59863.0,0.233866]
[1724113478870,0.0002,59939.0,59898.0,1.3243]
[1724113479081,0.0002,59939.0,59923.0,0.350449]
[1724113479327,0.0002,59939.0,59923.0,0.584082]
[1724113479533,0.0002,59939.0,59923.0,1.850449]
[1724113479993,0.0002,59939.0,59924.0,0.001]
[1724113480246,0.0002,59939.0,59925.0,0.17134877]
[1724113480470,0.0002,59939.0,59929.0,0.28915277]
[1724113480671,0.0002,59939.0,59929.0,1.75817367]
[1724113480840,0.0002,59939.0,59929.0,1.77434877]
[1724113481053,0.0002,59939.0,59926.0,0.1]
[1724113481054,0.0002,59939.0,59920.0,0.1]
[1724113481249,0.0002,59939.0,59929.0,0.003]
[1724113481250,0.00031788,59930.0,59929.0,0.003]
[1724113481451,0.00031788,59930.0,59904.0,0.3409]
[1724113481452,0.00031788,59930.0,59923.0,0.003]
[1724113481648,0.00031788,59930.0,59922.0,1.6]
[1724113481649,0.00031788,59930.0,59924.0,0.17434877]
[1724113481850,0.00031788,59930.0,59924.0,0.17134877]
[1724113482654,0.00031788,59930.0,59911.0,0.74772332]
[1724113482655,0.00031788,59930.0,59904.0,0.233706]
[1724113483035,0.23364,59922.0,59908.0,0.51404632]
[1724113483188,0.233624,59926.0,59913.0,0.003]
[1724113483362,0.233624,59926.0,59893.0,0.51404632]
[1724113483363,0.00031788,59930.0,59894.0,0.001]
[1724113483586,0.00031788,59930.0,59893.0,0.51404632]
[1724113483587,0.1515,59929.0,59903.0,0.001]
[1724113483764,0.1515,59929.0,59893.0,0.51404632]
[1724113483765,0.233663,59916.0,59893.0,0.51404632]
[1724113483966,0.023,59928.0,59907.0,0.001]
[1724113484202,0.116842,59910.0,59894.0,0.17468698]
[1724113484406,0.023,59928.0,59903.0,0.003]
[1724113484564,0.023,59928.0,59883.0,0.001]
[1724113484565,0.13258179,59927.0,59899.0,0.001]
[1724113484765,0.13258179,59927.0,59878.0,0.74785232]
[1724113484766,0.116857,59903.0,59898.0,0.003]
[1724113485042,0.116861,59900.0,59899.0,0.003]
[1724113485241,0.04093997,59926.0,59895.0,0.003]
[1724113485450,0.04093997,59926.0,59878.0,0.74785232]
[1724113485451,0.233653,59918.0,59888.0,0.003]
[1724113485655,0.333621,59926.0,59895.0,0.003]
[1724113485656,0.1,59926.0,59895.0,0.003]
[1724113485871,0.1,59926.0,59913.0,0.003]
[1724113485872,0.116834,59914.0,59913.0,0.003]
[1724113486270,0.350502,59914.0,59913.0,0.003]
[1724113486474,0.1151,59927.0,59905.0,0.003]
[1724113486890,0.233659,59917.0,59905.0,0.003]
[1724113487094,0.116856,59903.0,59902.0,0.003]
[1724113487293,0.1151,59927.0,59897.0,0.51404632]
[1724113487506,0.1151,59927.0,59889.0,0.216881]
[1724113487507,0.233632,59924.0,59889.0,0.216881]
[1724113487706,0.23366,59916.0,59897.0,0.51404632]
[1724113487923,0.233632,59924.0,59904.0,0.003]
[1724113488135,0.233632,59924.0,59889.0,0.1]
[1724113488136,0.03984238,59924.0,59903.0,0.003]
[1724113488340,0.05169179,59926.0,59892.0,0.003]
[1724113488341,0.002,59922.0,59892.0,0.003]
[1724113488544,0.233675,59913.0,59894.0,0.51404632]
[1724113488743,0.1458,59919.0,59895.0,0.001]
[1724113488970,0.1458,59919.0,59889.0,0.002]
[1724113488971,0.15778,59918.0,59889.0,0.003]
[1724113489176,0.23368,59911.0,59893.0,0.51404632]
[1724113489390,0.1468,59919.0,59893.0,0.51404632]
[1724113489391,0.1458,59919.0,59917.0,0.001]
[1724113489597,0.348717,59927.0,59914.0,0.003]
[1724113489598,0.1151,59927.0,59914.0,0.003]
[1724113489805,0.00342101,59927.0,59914.0,0.003]
[1724113490017,0.00031788,59930.0,59915.0,0.17468665]
[1724113490225,0.00031788,59930.0,59925.0,0.119812]
[1724113490437,0.00031788,59930.0,59925.0,0.001]
[1724113490653,0.00031788,59930.0,59922.0,0.001]
[1724113490848,0.00031788,59930.0,59929.0,0.001]
[1724113491049,0.00031788,59930.0,59928.0,0.003]
[1724113491163,0.00031788,59930.0,59920.0,0.233642]
[1724113491164,0.00031788,59930.0,59929.0,0.001]
[1724113491370,0.00113688,59930.0,59929.0,0.001]
[1724113491565,0.00113688,59930.0,59927.0,0.003]
[1724113491765,0.00113688,59930.0,59929.0,0.001]
[1724113491964,0.00113688,59930.0,59926.0,0.11681]
[1724113492175,0.11292888,59936.0,59934.0,0.002]
[1724113492390,0.116789,59937.0,59934.0,0.002]
[1724113492601,0.002,59956.0,59934.0,0.002]
[1724113492602,0.1446,59953.0,59938.0,0.001]
[1724113492807,0.1446,59953.0,59915.0,0.001]
[1724113492808,0.240255,59955.0,59950.0,0.001]
[1724113493008,0.1235,59955.0,59950.0,0.001]
[1724113493220,0.1235,59955.0,59951.0,0.001]
[1724113493427,0.1235,59955.0,59949.0,0.002]
[1724113493428,0.1235,59955.0,59954.0,0.001]
[1724113493635,0.1235,59955.0,59953.0,0.001]
[1724113493839,0.1235,59955.0,59951.0,0.003]
[1724113494040,0.1235,59955.0,59949.0,0.003]
[1724113494041,0.11676,59952.0,59949.0,0.003]
[1724113494341,0.1235,59955.0,59938.0,0.003]
[1724113494542,0.1235,59955.0,59922.0,0.333635]
[1724113494543,0.1235,59955.0,59934.0,0.003]
[1724113494752,0.1235,59955.0,59937.0,0.116789]
[1724113494948,0.1235,59955.0,59941.0,0.003]
[1724113495153,0.116771,59947.0,59945.0,0.001]
[1724113495358,0.233529,59950.0,59943.0,0.001]
[1724113495558,0.233533,59949.0,59936.0,0.116789]
[1724113495781,0.2138,59954.0,59934.0,0.116794]
[1724113495965,0.116782,59941.0,59934.0,0.003]
[1724113496215,0.2138,59954.0,59934.0,0.003]
[1724113496411,0.2138,59954.0,59915.0,0.1117]
[1724113496412,0.116784,59940.0,59932.0,0.116797]
[1724113496562,0.116784,59940.0,59933.0,0.116796]
[1724113496761,0.23356,59942.0,59932.0,0.116798]
[1724113496984,0.2138,59954.0,59934.0,0.003]
[1724113496985,0.447314,59954.0,59934.0,0.003]
[1724113497185,0.447314,59954.0,59907.0,0.001]
[1724113497186,0.002,59951.0,59925.0,0.003]
[1724113497384,0.002,59951.0,59919.0,0.233646]
[1724113497385,0.2143,59952.0,59933.0,0.003]
[1724113497609,0.116783,59941.0,59934.0,0.116794]
[1724113497813,0.233558,59943.0,59935.0,0.116792]
[1724113498019,0.2143,59952.0,59945.0,0.001]
[1724113498258,0.2143,59952.0,59951.0,0.003]
[1724113498442,0.125137,59959.0,59954.0,0.003]
[1724113498443,0.125136,59959.0,59954.0,0.003]
[1724113498803,0.00839,59959.0,59954.0,0.003]
[1724113499180,0.240254,59955.0,59954.0,0.003]
[1724113499392,0.0001768,59977.0,59955.0,0.003]
[1724113499617,0.116752,59956.0,59955.0,0.003]
[1724113499828,0.233468,59966.0,59955.0,0.003]
[1724113500038,0.233481,59962.0,59955.0,0.003]
[1724113500461,0.233468,59966.0,59955.0,0.003]
[1724113500669,0.1,59972.0,59954.0,0.003]
[1724113500886,0.116731,59967.0,59959.0,0.116746]
[1724113501096,0.0001768,59977.0,59966.0,0.233465]
[1724113501312,0.0001768,59977.0,59936.0,0.1]
[1724113501313,0.350302,59948.0,59947.0,0.06049157]
[1724113501524,0.571345,59972.0,59934.0,0.116793]
[1724113501525,0.00919,59974.0,59955.0,0.51404632]
[1724113501735,0.00919,59974.0,59955.0,0.003]
[1724113501736,0.74748432,59973.0,59955.0,0.003]
[1724113501931,0.74748432,59973.0,59935.0,0.17134877]
[1724113501932,0.3379,59958.0,59928.0,0.003]
[1724113502138,0.233514,59954.0,59937.0,0.001]
[1724113502355,0.001,59967.0,59907.0,0.066858]
[1724113502356,0.4052,59939.0,59907.0,0.066858]
[1724113502575,0.4052,59921.0,59891.0,0.003]
[1724113502775,0.4052,59921.0,59904.0,0.001]
[1724113502983,0.03,59941.0,59911.0,0.116838]
[1724113502984,0.233599,59932.0,59911.0,0.116838]
[1724113503201,0.233565,59941.0,59914.0,0.17468645]
[1724113503202,0.4052,59941.0,59914.0,0.17468645]
[1724113503420,0.74761532,59940.0,59930.0,0.001]
[1724113503619,0.233571,59939.0,59930.0,0.001]
[1724113503851,0.233571,59939.0,59914.0,0.17134877]
[1724113503852,0.521981,59941.0,59931.0,0.003]
[1724113504065,0.521981,59941.0,59929.0,0.003]
[1724113504066,0.116802,59930.0,59929.0,0.003]
[1724113504273,0.462639,59922.0,59918.0,0.001]
[1724113504478,0.116834,59914.0,59913.0,0.0009009]
[1724113504684,0.233646,59920.0,59913.0,0.0009009]
[1724113504895,0.116834,59914.0,59913.0,0.0009009]
[1724113505110,0.58417,59914.0,59913.0,0.0009009]
[1724113505318,0.995038,59914.0,59913.0,0.0009009]
[1724113508778,0.76137,59914.0,59913.0,0.0009009]
[1724113509201,0.229,59922.0,59913.0,0.0009009]
[1724113509403,0.116834,59914.0,59913.0,0.0009009]
[1724113509579,0.229,59922.0,59913.0,0.0009009]
[1724113509791,0.116834,59914.0,59913.0,0.0009009]
[1724113510004,0.58417,59914.0,59913.0,0.0009009]
[1724113510219,0.817838,59914.0,59913.0,0.0009009]
[1724113510416,0.58417,59914.0,59913.0,0.0009009]
[1724113510618,0.350502,59914.0,59913.0,0.0009009]
[1724113510849,0.58417,59914.0,59913.0,0.0009009]
[1724113511491,0.817838,59914.0,59913.0,0.0009009]
[1724113511710,0.817838,59914.0,59909.0,0.00040187]
[1724113511711,0.584207,59910.0,59909.0,0.00040187]
[1724113511906,0.584207,59910.0,59880.0,0.1]
[1724113511907,0.116902,59879.0,59864.0,0.2185]
[1724113512113,0.1446,59887.0,59878.0,0.003]
[1724113512114,0.116891,59885.0,59878.0,0.003]
[1724113512359,0.116891,59885.0,59871.0,0.234032]
[1724113512360,0.3724,59888.0,59887.0,0.001]
[1724113512555,0.3724,59888.0,59872.0,0.00333986]
[1724113512556,0.11691,59875.0,59872.0,0.001]
[1724113512799,0.2145,59878.0,59873.0,0.001]
[1724113513009,0.116916,59872.0,59871.0,0.0002]
[1724113513225,0.350748,59872.0,59871.0,0.0002]
[1724113513442,0.3976,59882.0,59871.0,0.0002]
[1724113513443,0.233822,59875.0,59871.0,0.0002]
[1724113513655,0.233801,59880.0,59871.0,0.0002]
[1724113513867,0.116858,59902.0,59891.0,0.116877]
[1724113514089,0.51404632,59892.0,59888.0,0.116882]
[1724113514293,0.1786,59896.0,59879.0,0.001]
[1724113514531,0.1786,59896.0,59875.0,0.002]
[1724113514532,0.1843,59911.0,59886.0,0.001]
[1724113514724,0.1843,59911.0,59885.0,0.003]
[1724113514725,0.51404632,59901.0,59885.0,0.003]
[1724113514941,0.1843,59911.0,59880.0,0.17134877]
[1724113515149,0.51404632,59910.0,59896.0,0.001]
[1724113515354,0.116853,59904.0,59903.0,0.001]
[1724113515557,0.1843,59911.0,59882.0,0.23379]
[1724113515760,0.116846,59908.0,59906.0,0.001]
[1724113515962,0.1843,59911.0,59906.0,0.001]
[1724113515963,0.233685,59910.0,59906.0,0.001]
[1724113516163,0.1843,59911.0,59904.0,0.001]
[1724113516164,0.233688,59909.0,59904.0,0.001]
[1724113516466,0.233688,59909.0,59896.0,0.00533873]
[1724113516467,0.1843,59911.0,59906.0,0.001]
[1724113516698,0.1843,59911.0,59897.0,0.233732]
[1724113516699,0.233683,59910.0,59897.0,0.233732]
[1724113516900,0.1843,59911.0,59894.0,0.00333873]
[1724113517103,0.233687,59909.0,59894.0,0.00333873]
[1724113517232,0.1843,59911.0,59894.0,0.00333873]
[1724113517233,0.116854,59904.0,59894.0,0.00333873]
[1724113517443,0.233695,59907.0,59900.0,0.003]
[1724113517638,0.227,59898.0,59891.0,0.003]
[1724113517845,0.227,59898.0,59879.0,0.04849729]
[1724113518049,0.227,59898.0,59897.0,0.003]
[1724113518246,0.460696,59907.0,59902.0,0.001]
[1724113518469,0.460696,59907.0,59896.0,0.001]
[1724113518470,0.2337,59906.0,59896.0,0.001]
[1724113518616,0.227,59907.0,59896.0,0.003]
[1724113518822,0.116856,59903.0,59897.0,0.003]
[1724113519020,0.227,59907.0,59895.0,0.003]
[1724113519267,0.227,59907.0,59902.0,0.001]
[1724113519268,0.350566,59903.0,59902.0,0.001]
[1724113519468,0.350566,59903.0,59889.0,0.233762]
[1724113519469,0.116866,59898.0,59894.0,0.003]
[1724113519812,0.227,59907.0,59894.0,0.003]
[1724113520044,0.08340759,59954.0,59894.0,0.003]
[1724113520045,0.00669,59927.0,59895.0,0.35104877]
[1724113520243,0.00831,59990.0,59936.0,0.116789]
[1724113520244,0.4074,59949.0,59936.0,0.116789]
[1724113520448,0.4074,59949.0,59927.0,0.2121]
[1724113520449,0.4074,59949.0,59935.0,0.116792]
[1724113520657,0.4074,59949.0,59941.0,0.11678]
[1724113520861,0.2302,59957.0,59951.0,0.001]
[1724113521061,0.2302,59957.0,59947.0,0.116769]
[1724113521062,0.2302,59957.0,59952.0,0.001]
[1724113521275,0.2302,59957.0,59952.0,0.003]
[1724113521834,0.34695,59957.0,59952.0,0.003]
[1724113522032,0.2302,59957.0,59952.0,0.0025856]
[1724113522459,0.233509,59955.0,59952.0,0.0025856]
[1724113522657,0.2302,59957.0,59952.0,0.0025856]
[1724113522861,0.233474,59964.0,59952.0,0.0025856]
[1724113523066,0.116743,59961.0,59952.0,0.1193446]
[1724113523322,0.116743,59961.0,59950.0,1.5]
[1724113523323,0.066844,59975.0,59956.0,0.233502]
[1724113523530,0.066844,59975.0,59953.0,0.17468464]
[1724113523531,0.241627,59974.0,59962.0,0.0025856]
[1724113523728,0.00819,59974.0,59963.0,0.116737]
[1724113523927,0.00819,59974.0,59956.0,1.5]
[1724113523928,0.11675,59957.0,59956.0,1.5]
[1724113524349,0.2324,59964.0,59956.0,1.5]
[1724113524752,0.000823,59973.0,59956.0,1.5]
[1724113524753,0.465843,59972.0,59956.0,1.5]
[1724113525227,0.349122,59972.0,59962.0,0.116739]